[Event "Titled Tuesday Blitz April 18 Late 2023"]
[White "ritanovikova"]
[Black "Papayan, Oleg"]
[BlackFideId "4193911"]
[WhiteElo "2129"]
[BlackElo "2153"]
[Result "0-1"]
[Round "04"]
[TimeControl "180+2"]
[Date "2023.04.18"]
[WhiteClock "0:00:03"]
[BlackClock "0:00:06"]

1. e4 {[%clk 0:02:55]}  d5 {[%clk 0:02:59]} 2. exd5 {[%clk 0:02:55]}  Qxd5 {[%clk 0:03:00]} 3. Nc3 {[%clk 0:02:56]}  Qd8 {[%clk 0:03:00]} 4. Nf3 {[%clk 0:02:55]}  c6 {[%clk 0:03:01]} 5. h3 {[%clk 0:02:55]}  Bf5 {[%clk 0:03:01]} 6. Bc4 {[%clk 0:02:54]}  e6 {[%clk 0:03:01]} 7. O-O {[%clk 0:02:54]}  Nd7 {[%clk 0:03:01]} 8. d4 {[%clk 0:02:54]}  Be7 {[%clk 0:03:02]} 9. a4 {[%clk 0:02:54]}  a5 {[%clk 0:03:02]} 10. Re1 {[%clk 0:02:48]}  Ngf6 {[%clk 0:03:01]} 11. Nh4 {[%clk 0:02:47]}  Bg6 {[%clk 0:03:01]} 12. Nxg6 {[%clk 0:02:47]}  hxg6 {[%clk 0:03:02]} 13. Bf4 {[%clk 0:02:45]}  O-O {[%clk 0:03:02]} 14. Qd2 {[%clk 0:02:36]}  Nb6 {[%clk 0:03:01]} 15. Bb3 {[%clk 0:02:36]}  Nbd5 {[%clk 0:03:01]} 16. Nxd5 {[%clk 0:02:35]}  cxd5 {[%clk 0:02:46]} 17. c3 {[%clk 0:02:27]}  Ne4 {[%clk 0:02:26]} 18. Qe2 {[%clk 0:02:27]}  Qb6 {[%clk 0:02:23]} 19. Bc2 {[%clk 0:02:13]}  Bd6 {[%clk 0:01:59]} 20. Bxe4 {[%clk 0:02:08]}  Bxf4 {[%clk 0:01:59]} 21. Bd3 {[%clk 0:02:06]}  Bc7 {[%clk 0:01:59]} 22. h4 {[%clk 0:02:04]}  Qd6 {[%clk 0:01:59]} 23. g3 {[%clk 0:02:03]}  Rfe8 {[%clk 0:01:46]} 24. f4 {[%clk 0:02:01]}  f5 {[%clk 0:01:29]} 25. Bb5 {[%clk 0:01:45]}  Re7 {[%clk 0:01:29]} 26. Kg2 {[%clk 0:01:41]}  Kf7 {[%clk 0:01:29]} 27. Qf3 {[%clk 0:01:29]}  Rh8 {[%clk 0:01:28]} 28. Re2 {[%clk 0:01:27]}  Rh5 {[%clk 0:01:24]} 29. Rae1 {[%clk 0:01:26]}  Bd8 {[%clk 0:01:12]} 30. Re3 {[%clk 0:01:22]}  Rh6 {[%clk 0:01:07]} 31. Rh1 {[%clk 0:01:14]}  Rc7 {[%clk 0:00:58]} 32. h5 {[%clk 0:01:04]}  g5 {[%clk 0:00:53]} 33. fxg5 {[%clk 0:00:53]}  Bxg5 {[%clk 0:00:54]} 34. Re5 {[%clk 0:00:52]}  Bf6 {[%clk 0:00:47]} 35. Re3 {[%clk 0:00:49]}  Rc8 {[%clk 0:00:46]} 36. g4 {[%clk 0:00:43]}  f4 {[%clk 0:00:38]} 37. Re2 {[%clk 0:00:40]}  g6 {[%clk 0:00:26]} 38. hxg6+ {[%clk 0:00:39]}  Rxg6 {[%clk 0:00:26]} 39. Bd3 {[%clk 0:00:37]}  Rg7 {[%clk 0:00:23]} 40. Rh7 {[%clk 0:00:35]}  Rg8 {[%clk 0:00:23]} 41. Rxg7+ {[%clk 0:00:34]}  Rxg7 {[%clk 0:00:23]} 42. Rf2 {[%clk 0:00:29]}  Bg5 {[%clk 0:00:17]} 43. Be2 {[%clk 0:00:25]}  Qd7 {[%clk 0:00:18]} 44. Qd3 {[%clk 0:00:24]}  Rg6 {[%clk 0:00:11]} 45. Qb5 {[%clk 0:00:22]}  Qc7 {[%clk 0:00:09]} 46. Bf3 {[%clk 0:00:21]}  Rh6 {[%clk 0:00:08]} 47. Rf1 {[%clk 0:00:20]}  Rh8 {[%clk 0:00:04]} 48. Rh1 {[%clk 0:00:19]}  Rxh1 {[%clk 0:00:03]} 49. Kxh1 {[%clk 0:00:20]}  Kf6 {[%clk 0:00:04]} 50. Kg2 {[%clk 0:00:19]}  Qh7 {[%clk 0:00:03]} 51. Qf1 {[%clk 0:00:18]}  Qh4 {[%clk 0:00:02]} 52. Qf2 {[%clk 0:00:17]}  Qh7 {[%clk 0:00:02]} 53. Qg1 {[%clk 0:00:17]}  Qc2+ {[%clk 0:00:02]} 54. Qf2 {[%clk 0:00:17]}  Qxa4 {[%clk 0:00:03]} 55. Qe2 {[%clk 0:00:16]}  Qa1 {[%clk 0:00:03]} 56. Qc2 {[%clk 0:00:16]}  a4 {[%clk 0:00:03]} 57. Bd1 {[%clk 0:00:15]}  b5 {[%clk 0:00:02]} 58. Be2 {[%clk 0:00:14]}  Bh4 {[%clk 0:00:01]} 59. Bxb5 {[%clk 0:00:13]}  Qe1 {[%clk 0:00:02]} 60. Qe2 {[%clk 0:00:12]}  Qg3+ {[%clk 0:00:02]} 61. Kf1 {[%clk 0:00:13]}  f3 {[%clk 0:00:03]} 62. Qe5+ {[%clk 0:00:09]}  Qxe5 {[%clk 0:00:04]} 63. dxe5+ {[%clk 0:00:10]}  Kxe5 {[%clk 0:00:05]} 64. Bxa4 {[%clk 0:00:10]}  Kf4 {[%clk 0:00:05]} 65. Bd1 {[%clk 0:00:10]}  e5 {[%clk 0:00:05]} 66. b4 {[%clk 0:00:10]}  e4 {[%clk 0:00:05]} 67. b5 {[%clk 0:00:07]}  Bd8 {[%clk 0:00:04]} 68. Bb3 {[%clk 0:00:05]}  e3 {[%clk 0:00:04]} 69. Bxd5 {[%clk 0:00:03]}  e2+ {[%clk 0:00:04]} 70. Ke1 {[%clk 0:00:02]}  Bh4+ {[%clk 0:00:04]} 71. Kd2 {[%clk 0:00:03]}  e1=Q+ {[%clk 0:00:05]} 72. Kc2 {[%clk 0:00:03]}  Qe2+ {[%clk 0:00:05]} 73. Kb3 {[%clk 0:00:03]}  Qxb5+ {[%clk 0:00:05]} 74. Kc2 {[%clk 0:00:03]}  Qxd5 {[%clk 0:00:06]} 0-1


[Site "https://www.chess.com"]

[Event "Titled Tuesday Blitz April 18 Late 2023"]
[White "Kovacevic, Radmila"]
[Black "Pein, Jonathan"]
[WhiteFideId "933171"]
[BlackFideId "417092"]
[WhiteElo "2194"]
[BlackElo "2151"]
[Result "1-0"]
[Round "04"]
[TimeControl "180+2"]
[Date "2023.04.18"]
[WhiteClock "0:01:09"]
[BlackClock "0:01:09"]

1. e4 {[%clk 0:03:00]}  e5 {[%clk 0:02:59]} 2. d4 {[%clk 0:03:00]}  exd4 {[%clk 0:02:55]} 3. Qxd4 {[%clk 0:03:01]}  Nc6 {[%clk 0:02:54]} 4. Qe3 {[%clk 0:03:02]}  g6 {[%clk 0:02:49]} 5. Bd2 {[%clk 0:02:58]}  Bh6 {[%clk 0:02:48]} 6. f4 {[%clk 0:02:57]}  Qh4+ {[%clk 0:02:41]} 7. g3 {[%clk 0:02:56]}  Qe7 {[%clk 0:02:41]} 8. Qc3 {[%clk 0:02:53]}  f6 {[%clk 0:02:35]} 9. Qe3 {[%clk 0:02:40]}  Ne5 {[%clk 0:02:34]} 10. Nc3 {[%clk 0:02:36]}  Ng4 {[%clk 0:02:32]} 11. Qe2 {[%clk 0:02:35]}  d6 {[%clk 0:02:24]} 12. h3 {[%clk 0:02:27]}  Ne5 {[%clk 0:02:14]} 13. Nd5 {[%clk 0:02:24]}  Qd8 {[%clk 0:01:58]} 14. fxe5 {[%clk 0:02:22]}  Bxd2+ {[%clk 0:01:58]} 15. Qxd2 {[%clk 0:02:22]}  dxe5 {[%clk 0:01:57]} 16. O-O-O {[%clk 0:02:17]}  Be6 {[%clk 0:01:49]} 17. Qb4 {[%clk 0:02:05]}  Qc8 {[%clk 0:01:42]} 18. Bc4 {[%clk 0:01:53]}  a5 {[%clk 0:01:42]} 19. Qa3 {[%clk 0:01:38]}  Bxd5 {[%clk 0:01:37]} 20. exd5 {[%clk 0:01:33]}  Ne7 {[%clk 0:01:34]} 21. Ne2 {[%clk 0:01:28]}  Rb8 {[%clk 0:01:28]} 22. d6 {[%clk 0:01:23]}  cxd6 {[%clk 0:01:28]} 23. Qxd6 {[%clk 0:01:22]}  b5 {[%clk 0:01:23]} 24. Be6 {[%clk 0:01:13]}  Qb7 {[%clk 0:01:16]} 25. Bd7+ {[%clk 0:01:10]}  Kd8 {[%clk 0:01:09]} 26. Bc6+ {[%clk 0:01:09]} 1-0


[Site "https://www.chess.com"]

[Event "Titled Tuesday Blitz April 18 Late 2023"]
[White "Gonzalez, Francisco Silva"]
[Black "Dias, Joao Batista"]
[WhiteFideId "1512285"]
[BlackFideId "2108240"]
[WhiteElo "2074"]
[BlackElo "1907"]
[Result "1-0"]
[Round "04"]
[TimeControl "180+2"]
[Date "2023.04.18"]
[WhiteClock "0:02:19"]
[BlackClock "0:01:54"]

1. d4 {[%clk 0:03:00]}  d5 {[%clk 0:02:59]} 2. c4 {[%clk 0:03:00]}  Nf6 {[%clk 0:02:59]} 3. Nc3 {[%clk 0:03:00]}  c6 {[%clk 0:02:59]} 4. e3 {[%clk 0:03:00]}  Bf5 {[%clk 0:02:58]} 5. cxd5 {[%clk 0:02:59]}  cxd5 {[%clk 0:02:57]} 6. Qb3 {[%clk 0:02:56]}  Qd7 {[%clk 0:02:43]} 7. Nf3 {[%clk 0:02:55]}  Nc6 {[%clk 0:02:43]} 8. Ne5 {[%clk 0:02:52]}  Qc7 {[%clk 0:02:30]} 9. Bd2 {[%clk 0:02:52]}  e6 {[%clk 0:02:29]} 10. Rc1 {[%clk 0:02:51]}  Qe7 {[%clk 0:02:24]} 11. Nxc6 {[%clk 0:02:37]}  bxc6 {[%clk 0:02:23]} 12. Na4 {[%clk 0:02:30]}  Rc8 {[%clk 0:02:10]} 13. Ba6 {[%clk 0:02:28]}  Rc7 {[%clk 0:02:08]} 14. Ba5 {[%clk 0:02:26]}  Qd6 {[%clk 0:01:55]} 15. Qb8+ {[%clk 0:02:21]}  Kd7 {[%clk 0:01:54]} 16. Nc5+ {[%clk 0:02:19]} 1-0


[Site "https://www.chess.com"]

[Event "Titled Tuesday Blitz April 18 Late 2023"]
[White "Ramirez Vido, Robert Yorisan"]
[Black "Aqib Javaid Butt"]
[WhiteFideId "3513823"]
[BlackFideId "7801262"]
[WhiteElo "2399"]
[BlackElo "1659"]
[Result "1-0"]
[Round "04"]
[TimeControl "180+2"]
[Date "2023.04.18"]
[WhiteClock "0:00:43"]
[BlackClock "0:00:28"]

1. f4 {[%clk 0:02:57]}  d5 {[%clk 0:03:00]} 2. Nf3 {[%clk 0:02:57]}  c6 {[%clk 0:03:00]} 3. g3 {[%clk 0:02:57]}  Nf6 {[%clk 0:03:01]} 4. Bg2 {[%clk 0:02:58]}  g6 {[%clk 0:03:01]} 5. d3 {[%clk 0:02:58]}  Bg7 {[%clk 0:03:02]} 6. O-O {[%clk 0:02:59]}  O-O {[%clk 0:03:01]} 7. Qe1 {[%clk 0:02:59]}  d4 {[%clk 0:02:57]} 8. a4 {[%clk 0:02:55]}  a5 {[%clk 0:02:55]} 9. Na3 {[%clk 0:02:54]}  Na6 {[%clk 0:02:54]} 10. Nc4 {[%clk 0:02:53]}  Nb4 {[%clk 0:02:53]} 11. Qd1 {[%clk 0:02:46]}  Nfd5 {[%clk 0:02:51]} 12. Bd2 {[%clk 0:02:45]}  Ne3 {[%clk 0:02:42]} 13. Bxe3 {[%clk 0:01:58]}  dxe3 {[%clk 0:02:40]} 14. c3 {[%clk 0:01:59]}  Nd5 {[%clk 0:02:40]} 15. Qc1 {[%clk 0:01:58]}  Re8 {[%clk 0:01:32]} 16. Nxe3 {[%clk 0:01:57]}  Qb6 {[%clk 0:01:31]} 17. d4 {[%clk 0:01:30]}  Nxe3 {[%clk 0:01:27]} 18. Qxe3 {[%clk 0:01:31]}  Qxb2 {[%clk 0:01:27]} 19. Ne5 {[%clk 0:01:25]}  Qc2 {[%clk 0:01:07]} 20. Rfb1 {[%clk 0:01:01]}  Bxe5 {[%clk 0:00:57]} 21. fxe5 {[%clk 0:00:44]}  Rb8 {[%clk 0:00:36]} 22. Be4 {[%clk 0:00:43]}  Qxb1+ {[%clk 0:00:28]} 23. Rxb1 {[%clk 0:00:43]} 1-0


[Site "https://www.chess.com"]

[Event "Titled Tuesday Blitz April 18 Late 2023"]
[White "Burke, Paul"]
[Black "Gerbelli Neto, Eduardo"]
[WhiteFideId "2605767"]
[BlackFideId "2103281"]
[WhiteElo "1922"]
[BlackElo "2178"]
[Result "0-1"]
[Round "04"]
[TimeControl "180+2"]
[Date "2023.04.18"]
[WhiteClock "0:00:08"]
[BlackClock "0:01:16"]

1. e4 {[%clk 0:01:58]}  e5 {[%clk 0:02:58]} 2. Nf3 {[%clk 0:01:57]}  Nc6 {[%clk 0:02:58]} 3. Bc4 {[%clk 0:01:57]}  Nf6 {[%clk 0:02:58]} 4. d4 {[%clk 0:01:57]}  exd4 {[%clk 0:02:58]} 5. O-O {[%clk 0:01:57]}  Nxe4 {[%clk 0:02:54]} 6. Re1 {[%clk 0:01:56]}  d5 {[%clk 0:02:54]} 7. Bxd5 {[%clk 0:01:56]}  Qxd5 {[%clk 0:02:55]} 8. Nc3 {[%clk 0:01:56]}  Qa5 {[%clk 0:02:55]} 9. Nxe4 {[%clk 0:01:56]}  Be6 {[%clk 0:02:56]} 10. Neg5 {[%clk 0:01:56]}  O-O-O {[%clk 0:02:56]} 11. Nxe6 {[%clk 0:01:56]}  fxe6 {[%clk 0:02:57]} 12. Bg5 {[%clk 0:01:56]}  Rd5 {[%clk 0:02:36]} 13. Bd2 {[%clk 0:01:50]}  Bb4 {[%clk 0:02:36]} 14. Bxb4 {[%clk 0:01:32]}  Qxb4 {[%clk 0:02:36]} 15. Rxe6 {[%clk 0:01:25]}  Qxb2 {[%clk 0:02:36]} 16. Rb1 {[%clk 0:01:25]}  Qxa2 {[%clk 0:02:31]} 17. Ra1 {[%clk 0:01:04]}  Qc4 {[%clk 0:02:26]} 18. Nd2 {[%clk 0:01:04]}  Qb4 {[%clk 0:01:57]} 19. Rb1 {[%clk 0:01:00]}  Qf8 {[%clk 0:01:46]} 20. Qe2 {[%clk 0:00:23]}  d3 {[%clk 0:01:38]} 21. cxd3 {[%clk 0:00:10]}  Nd4 {[%clk 0:01:22]} 22. Qe4 {[%clk 0:00:08]}  Qf5 {[%clk 0:01:16]} 0-1


[Site "https://www.chess.com"]

[Event "Titled Tuesday Blitz April 18 Late 2023"]
[White "Bueno, Alfeu Junior Varela"]
[Black "Lopez Gracia, Fernando"]
[WhiteFideId "2108879"]
[BlackFideId "2207184"]
[WhiteElo "2175"]
[BlackElo "2526"]
[Result "0-1"]
[Round "04"]
[TimeControl "180+2"]
[Date "2023.04.18"]
[WhiteClock "0:00:09"]
[BlackClock "0:01:19"]

1. e4 {[%clk 0:03:00]}  e5 {[%clk 0:02:55]} 2. Nc3 {[%clk 0:03:00]}  d6 {[%clk 0:02:53]} 3. f4 {[%clk 0:02:59]}  g6 {[%clk 0:02:53]} 4. Nf3 {[%clk 0:02:58]}  Bg7 {[%clk 0:02:53]} 5. Bc4 {[%clk 0:02:57]}  Ne7 {[%clk 0:02:52]} 6. O-O {[%clk 0:02:42]}  Nbc6 {[%clk 0:02:52]} 7. d3 {[%clk 0:02:14]}  O-O {[%clk 0:02:50]} 8. a4 {[%clk 0:02:09]}  Be6 {[%clk 0:02:47]} 9. Nd5 {[%clk 0:02:06]}  Na5 {[%clk 0:02:44]} 10. Ba2 {[%clk 0:02:02]}  Nac6 {[%clk 0:02:34]} 11. Ng5 {[%clk 0:01:54]}  Bxd5 {[%clk 0:02:33]} 12. exd5 {[%clk 0:01:54]}  Nb4 {[%clk 0:02:32]} 13. Bc4 {[%clk 0:01:32]}  Nbxd5 {[%clk 0:02:27]} 14. f5 {[%clk 0:01:32]}  c6 {[%clk 0:02:24]} 15. fxg6 {[%clk 0:01:12]}  hxg6 {[%clk 0:02:21]} 16. Qg4 {[%clk 0:01:09]}  Nf5 {[%clk 0:02:08]} 17. Rxf5 {[%clk 0:01:03]}  gxf5 {[%clk 0:02:05]} 18. Qh5 {[%clk 0:01:01]}  Nf6 {[%clk 0:02:03]} 19. Bxf7+ {[%clk 0:01:01]}  Rxf7 {[%clk 0:02:03]} 20. Qxf7+ {[%clk 0:01:01]}  Kh8 {[%clk 0:02:04]} 21. Qg6 {[%clk 0:00:39]}  Qe8 {[%clk 0:02:04]} 22. Qxf5 {[%clk 0:00:39]}  Qh5 {[%clk 0:02:04]} 23. Bd2 {[%clk 0:00:32]}  Rf8 {[%clk 0:02:03]} 24. Rf1 {[%clk 0:00:30]}  Ng4 {[%clk 0:01:45]} 25. Qxf8+ {[%clk 0:00:29]}  Bxf8 {[%clk 0:01:43]} 26. Rxf8+ {[%clk 0:00:30]}  Kg7 {[%clk 0:01:41]} 27. Rf7+ {[%clk 0:00:29]}  Kg8 {[%clk 0:01:39]} 28. Rh7 {[%clk 0:00:20]}  Qg6 {[%clk 0:01:36]} 29. Rxb7 {[%clk 0:00:16]}  Nf6 {[%clk 0:01:25]} 30. Rxa7 {[%clk 0:00:15]}  Qh5 {[%clk 0:01:24]} 31. Bc3 {[%clk 0:00:11]}  Qd1+ {[%clk 0:01:23]} 32. Kf2 {[%clk 0:00:11]}  Qxc2+ {[%clk 0:01:23]} 33. Kg3 {[%clk 0:00:11]}  Qxd3+ {[%clk 0:01:23]} 34. Kh4 {[%clk 0:00:09]}  Qc4+ {[%clk 0:01:19]} 0-1


[Site "https://www.chess.com"]

[Event "Titled Tuesday Blitz April 18 Late 2023"]
[White "Fuzesabonyilaci"]
[Black "ChessSG1"]
[WhiteElo "2345"]
[BlackElo "2194"]
[Result "0-1"]
[Round "04"]
[TimeControl "180+2"]
[Date "2023.04.18"]
[WhiteClock "0:00:03"]
[BlackClock "0:00:28"]

1. e4 {[%clk 0:03:00]}  c5 {[%clk 0:02:59]} 2. Nf3 {[%clk 0:03:00]}  g6 {[%clk 0:03:00]} 3. d4 {[%clk 0:02:58]}  cxd4 {[%clk 0:03:00]} 4. Qxd4 {[%clk 0:02:49]}  Nf6 {[%clk 0:03:01]} 5. Bb5 {[%clk 0:02:38]}  Nc6 {[%clk 0:02:21]} 6. Bxc6 {[%clk 0:02:37]}  dxc6 {[%clk 0:02:22]} 7. Qxd8+ {[%clk 0:02:32]}  Kxd8 {[%clk 0:02:22]} 8. Nc3 {[%clk 0:02:28]}  Ke8 {[%clk 0:02:20]} 9. Bf4 {[%clk 0:01:51]}  Bg7 {[%clk 0:02:17]} 10. O-O-O {[%clk 0:01:44]}  h6 {[%clk 0:02:17]} 11. h3 {[%clk 0:01:38]}  Be6 {[%clk 0:02:17]} 12. Nd4 {[%clk 0:01:35]}  Bd7 {[%clk 0:02:08]} 13. Nb3 {[%clk 0:01:30]}  b6 {[%clk 0:02:05]} 14. e5 {[%clk 0:01:24]}  Nh5 {[%clk 0:02:05]} 15. Bh2 {[%clk 0:01:23]}  Bf8 {[%clk 0:01:53]} 16. Rd2 {[%clk 0:01:06]}  Ng7 {[%clk 0:01:40]} 17. Rhd1 {[%clk 0:01:01]}  Rd8 {[%clk 0:01:40]} 18. f4 {[%clk 0:00:54]}  Ne6 {[%clk 0:01:28]} 19. g4 {[%clk 0:00:33]}  f5 {[%clk 0:01:28]} 20. gxf5 {[%clk 0:00:27]}  gxf5 {[%clk 0:01:29]} 21. Ne2 {[%clk 0:00:24]}  c5 {[%clk 0:01:13]} 22. Rd3 {[%clk 0:00:17]}  Bb5 {[%clk 0:01:10]} 23. Rxd8+ {[%clk 0:00:16]}  Nxd8 {[%clk 0:01:09]} 24. Ng3 {[%clk 0:00:15]}  e6 {[%clk 0:01:06]} 25. Nd2 {[%clk 0:00:15]}  Rg8 {[%clk 0:01:05]} 26. Nh5 {[%clk 0:00:15]}  Be7 {[%clk 0:01:04]} 27. Rg1 {[%clk 0:00:10]}  Rxg1+ {[%clk 0:01:00]} 28. Bxg1 {[%clk 0:00:11]}  Kf7 {[%clk 0:01:01]} 29. Ng3 {[%clk 0:00:10]}  Bc6 {[%clk 0:01:00]} 30. Bf2 {[%clk 0:00:10]}  Bg2 {[%clk 0:01:00]} 31. Kd1 {[%clk 0:00:05]}  Bxh3 {[%clk 0:01:01]} 32. Ke2 {[%clk 0:00:05]}  Bg4+ {[%clk 0:01:01]} 33. Ke3 {[%clk 0:00:05]}  Nc6 {[%clk 0:01:01]} 34. Ndf1 {[%clk 0:00:05]}  h5 {[%clk 0:01:00]} 35. Nh2 {[%clk 0:00:06]}  Bd1 {[%clk 0:00:55]} 36. c3 {[%clk 0:00:05]}  h4 {[%clk 0:00:54]} 37. Ngf1 {[%clk 0:00:05]}  Na5 {[%clk 0:00:50]} 38. Nd2 {[%clk 0:00:05]}  Bh5 {[%clk 0:00:48]} 39. Nhf3 {[%clk 0:00:05]}  h3 {[%clk 0:00:46]} 40. Bg1 {[%clk 0:00:04]}  Bg4 {[%clk 0:00:35]} 41. Kf2 {[%clk 0:00:04]}  Kg6 {[%clk 0:00:34]} 42. Kg3 {[%clk 0:00:03]}  Kh5 {[%clk 0:00:31]} 43. Nh2 {[%clk 0:00:03]}  Bh4# {[%clk 0:00:28]} 0-1


[Site "https://www.chess.com"]

[Event "Titled Tuesday Blitz April 18 Late 2023"]
[White "Jaskolka, Tomasz"]
[Black "Gardezi, Arsal"]
[WhiteFideId "1170791"]
[BlackFideId "30949521"]
[WhiteElo "2155"]
[BlackElo "1906"]
[Result "1-0"]
[Round "04"]
[TimeControl "180+2"]
[Date "2023.04.18"]
[WhiteClock "0:01:50"]
[BlackClock "0:01:13"]

1. e4 {[%clk 0:03:00]}  e5 {[%clk 0:03:00]} 2. Nf3 {[%clk 0:02:57]}  Nc6 {[%clk 0:02:55]} 3. Bc4 {[%clk 0:02:57]}  Nf6 {[%clk 0:02:54]} 4. Ng5 {[%clk 0:02:56]}  d5 {[%clk 0:02:54]} 5. exd5 {[%clk 0:02:57]}  Na5 {[%clk 0:02:53]} 6. Bb5+ {[%clk 0:02:57]}  c6 {[%clk 0:02:54]} 7. dxc6 {[%clk 0:02:58]}  bxc6 {[%clk 0:02:55]} 8. Bd3 {[%clk 0:02:59]}  Nd5 {[%clk 0:02:53]} 9. h4 {[%clk 0:02:50]}  h6 {[%clk 0:02:52]} 10. Qh5 {[%clk 0:02:48]}  Qf6 {[%clk 0:02:48]} 11. Nxf7 {[%clk 0:02:47]}  Nf4 {[%clk 0:02:37]} 12. Qxe5+ {[%clk 0:02:21]}  Kxf7 {[%clk 0:02:34]} 13. Qxa5 {[%clk 0:02:22]}  Nxg2+ {[%clk 0:01:48]} 14. Kf1 {[%clk 0:02:20]}  Nf4 {[%clk 0:01:48]} 15. Bc4+ {[%clk 0:02:18]}  Be6 {[%clk 0:01:47]} 16. Bxe6+ {[%clk 0:02:17]}  Qxe6 {[%clk 0:01:47]} 17. Qc7+ {[%clk 0:02:17]}  Kg8 {[%clk 0:01:41]} 18. Qxf4 {[%clk 0:02:17]}  Bd6 {[%clk 0:01:41]} 19. Qe3 {[%clk 0:02:16]}  Qd5 {[%clk 0:01:39]} 20. Qb3 {[%clk 0:02:16]}  Re8 {[%clk 0:01:36]} 21. Qxd5+ {[%clk 0:02:15]}  cxd5 {[%clk 0:01:36]} 22. d4 {[%clk 0:02:14]}  Bb4 {[%clk 0:01:34]} 23. c3 {[%clk 0:02:15]}  Bd6 {[%clk 0:01:34]} 24. Be3 {[%clk 0:02:15]}  Kf7 {[%clk 0:01:34]} 25. Nd2 {[%clk 0:02:16]}  Rhf8 {[%clk 0:01:34]} 26. Ke2 {[%clk 0:02:16]}  Kg6 {[%clk 0:01:34]} 27. Rag1+ {[%clk 0:02:16]}  Kh7 {[%clk 0:01:34]} 28. h5 {[%clk 0:02:16]}  Bf4 {[%clk 0:01:33]} 29. Nf3 {[%clk 0:02:14]}  Bd6 {[%clk 0:01:32]} 30. Rg6 {[%clk 0:02:12]}  Bb8 {[%clk 0:01:26]} 31. Rhg1 {[%clk 0:02:12]}  Re7 {[%clk 0:01:26]} 32. Ne5 {[%clk 0:02:08]}  Rf5 {[%clk 0:01:23]} 33. Nc6 {[%clk 0:01:53]}  Rb7 {[%clk 0:01:14]} 34. Nxb8 {[%clk 0:01:51]}  Rxb8 {[%clk 0:01:14]} 35. Rxg7+ {[%clk 0:01:51]}  Kh8 {[%clk 0:01:13]} 36. b4 {[%clk 0:01:50]} 1-0


[Site "https://www.chess.com"]

[Event "Titled Tuesday Blitz April 18 Late 2023"]
[White "Broca Jimenez, Fernando"]
[Black "Mikheev, Stanislav"]
[WhiteFideId "5104742"]
[BlackFideId "4135920"]
[WhiteElo "2062"]
[BlackElo "2230"]
[Result "0-1"]
[Round "04"]
[TimeControl "180+2"]
[Date "2023.04.18"]
[WhiteClock "0:02:06"]
[BlackClock "0:01:51"]

1. e4 {[%clk 0:03:00]}  e5 {[%clk 0:02:59]} 2. Nf3 {[%clk 0:03:00]}  Nc6 {[%clk 0:02:59]} 3. Bb5 {[%clk 0:02:58]}  a6 {[%clk 0:03:00]} 4. Ba4 {[%clk 0:02:59]}  Nf6 {[%clk 0:03:00]} 5. O-O {[%clk 0:02:58]}  Be7 {[%clk 0:03:00]} 6. Re1 {[%clk 0:02:58]}  b5 {[%clk 0:03:01]} 7. Bb3 {[%clk 0:02:58]}  d6 {[%clk 0:03:02]} 8. c3 {[%clk 0:02:58]}  O-O {[%clk 0:03:02]} 9. h3 {[%clk 0:02:58]}  Nb8 {[%clk 0:03:03]} 10. d4 {[%clk 0:02:57]}  Nbd7 {[%clk 0:03:03]} 11. Nbd2 {[%clk 0:02:55]}  Bb7 {[%clk 0:03:00]} 12. Bc2 {[%clk 0:02:49]}  Re8 {[%clk 0:03:01]} 13. Nf1 {[%clk 0:02:50]}  Bf8 {[%clk 0:03:01]} 14. g4 {[%clk 0:02:48]}  exd4 {[%clk 0:02:56]} 15. Qxd4 {[%clk 0:02:47]}  d5 {[%clk 0:02:33]} 16. exd5 {[%clk 0:02:37]}  Rxe1 {[%clk 0:02:31]} 17. Nxe1 {[%clk 0:02:38]}  Bc5 {[%clk 0:02:22]} 18. Qd1 {[%clk 0:02:20]}  Nxd5 {[%clk 0:02:06]} 19. Be4 {[%clk 0:02:11]}  Nxc3 {[%clk 0:01:58]} 20. Bxh7+ {[%clk 0:02:10]}  Kxh7 {[%clk 0:01:57]} 21. Qc2+ {[%clk 0:02:09]}  Ne4 {[%clk 0:01:53]} 22. Ng3 {[%clk 0:02:09]}  Bxf2+ {[%clk 0:01:51]} 23. Kh2 {[%clk 0:02:06]}  Bxg3+ {[%clk 0:01:51]} 0-1


[Site "https://www.chess.com"]